bitfinex/quotes_ETHUSD_20220117
["timestamp","ask_amount","ask_price","bid_price","bid_amount"]
[1642435554793,0.27639994,3244.4,3243.4,0.77052]
[1642435554992,0.27639994,3244.4,3243.5,0.3]
[1642435555193,0.27639994,3244.4,3243.5,1.85119163]
[1642435555394,0.27639994,3244.4,3243.6,0.0096632]
[1642435555597,1.43354092,3244.2,3243.6,0.0096632]
[1642435555834,1.39316358,3243.8,3243.6,0.0096632]
[1642435557438,1.39316358,3243.8,3243.5,0.01023163]
[1642435559582,2.81856447,3243.7,3243.5,0.01023163]
[1642435559882,2.72094203,3243.7,3243.4,0.01080005]
[1642435560079,2.72094203,3243.7,3243.2,0.0119369]
[1642435560280,1.4127307,3243.5,3243.2,0.0119369]
[1642435560981,1.4127307,3243.5,3242.9,0.01364217]
[1642435561185,1.17063462,3243.0,3242.9,0.01364217]
[1642435562784,1.17063462,3243.0,3242.9,0.4728853]
[1642435565134,1.17063462,3243.0,3242.9,1.4728853]
[1642435565333,1.17063462,3243.0,3242.9,0.4728853]
[1642435566341,2.50625572,3243.0,3242.9,0.4728853]
[1642435566993,2.50625572,3243.0,3242.3,1.57433312]
[1642435566994,5.66773292,3243.0,3242.3,1.57433312]
[1642435567190,5.66773292,3243.0,3242.3,1.52433312]
[1642435567384,5.66773292,3243.0,3242.4,0.00284211]
[1642435567784,0.3,3242.9,3242.4,0.00284211]
[1642435567984,0.7710502,3242.8,3242.0,0.00511581]
[1642435568186,1.0710502,3242.8,3242.0,0.00511581]
[1642435568387,1.0710502,3242.8,3241.9,0.00568423]
[1642435568589,1.46255022,3242.0,3241.9,0.00568423]
[1642435568890,3.81656833,3242.0,3241.9,0.00568423]
[1642435569389,3.81656833,3242.0,3241.8,0.00625266]
[1642435569592,2.77467912,3241.9,3241.8,0.00625266]
[1642435570189,2.77467912,3241.9,3241.4,0.00852635]
[1642435570390,2.77467912,3241.9,3241.4,0.30852635]
[1642435570589,2.77467912,3241.9,3241.3,0.00909477]
[1642435570832,2.77467912,3241.9,3241.5,0.00795793]
[1642435571032,2.77467912,3241.9,3241.3,0.00795793]
[1642435571232,2.77467912,3241.9,3241.6,0.0073895]
[1642435571431,2.77467912,3241.9,3241.3,0.00909477]
[1642435571834,3.07467912,3241.9,3241.3,0.00909477]
[1642435572036,0.6812,3241.9,3241.3,0.00909477]
[1642435572233,3.5329865,3241.9,3241.3,0.00909477]
[1642435572436,0.6812,3241.9,3240.7,0.01250531]
[1642435572638,1.2503326,3240.9,3240.7,0.01250531]
[1642435572838,1.45976189,3240.8,3240.7,0.01250531]
[1642435573439,1.45976189,3240.8,3240.5,0.01364216]
[1642435573840,4.31154839,3240.8,3240.5,0.01364216]
[1642435574041,1.45976189,3240.8,3240.5,0.01364216]
[1642435574680,1.28128623,3240.2,3240.0,0.01648428]
[1642435575281,1.28128623,3240.2,3239.8,0.01762112]
[1642435575485,1.28128623,3240.2,3239.9,0.0170527]
[1642435575486,2.18468623,3240.2,3239.9,0.0170527]
[1642435575688,2.18468623,3240.2,3239.8,0.01762112]
[1642435577189,1.48277016,3239.7,3239.6,0.01875797]
[1642435577590,1.48277016,3239.7,3239.3,0.02046324]
[1642435577787,0.9034,3240.2,3239.3,0.02046324]
[1642435577987,0.9034,3240.2,3239.3,1.02046324]
[1642435578242,1.5888,3240.2,3239.3,0.02046324]
[1642435578444,1.5888,3240.2,3239.4,0.01989482]
[1642435578644,1.5888,3240.2,3239.1,0.02160009]
[1642435579243,1.15094682,3239.3,3239.1,0.02160009]
[1642435579445,1.24417349,3239.6,3239.1,0.80549403]
[1642435579945,1.24417349,3239.6,3239.2,0.02103167]
[1642435580347,1.24417349,3239.6,3239.2,3.52103167]
[1642435580545,1.24417349,3239.6,3239.2,0.02103167]
[1642435580745,1.24417349,3239.6,3239.3,0.02046324]
[1642435580946,1.43086459,3239.5,3239.0,0.02216851]
[1642435582088,2.96854481,3239.4,3239.0,0.02216851]
[1642435583094,2.96854481,3239.4,3238.8,0.02330536]
[1642435583095,4.04043751,3239.4,3238.8,0.02330536]
[1642435583496,4.04043751,3239.4,3238.5,0.02501063]
[1642435584195,1.49934321,3238.6,3238.5,0.02501063]
[1642435584594,1.49934321,3238.6,3238.2,0.0267159]
[1642435584794,1.49934321,3238.6,3237.8,0.32898959]
[1642435585095,2.90571656,3238.5,3237.9,0.02842117]
[1642435585300,1.14716915,3238.4,3237.9,0.02842117]
[1642435585496,2.91833623,3238.3,3237.8,0.02898959]
[1642435585731,1.14716915,3238.4,3237.8,0.02898959]
[1642435586331,2.80267987,3238.3,3237.4,0.03126329]
[1642435586936,2.80267987,3238.3,3237.3,0.03183171]
[1642435587840,3.10267987,3238.3,3237.3,0.03183171]
[1642435588040,3.40267987,3238.3,3237.3,0.03183171]
[1642435588237,0.7722175,3238.1,3237.3,0.03183171]
[1642435588442,0.3,3238.0,3237.0,0.03353698]
[1642435588644,2.84835388,3237.9,3236.7,0.03524225]
[1642435588843,1.4312105,3237.0,3236.7,0.03524225]
[1642435589041,2.2044105,3237.0,3236.7,0.03524225]
[1642435589242,0.7732,3237.0,3236.7,0.03524225]
[1642435589493,0.7732,3237.0,3236.7,1.57952225]
[1642435589690,0.7732,3237.0,3236.7,2.57952225]
[1642435589891,0.7732,3237.0,3236.8,0.03467383]
[1642435590092,3.6128,3237.8,3236.8,0.03467383]
[1642435590299,0.13819997,3238.1,3237.2,1.13523531]
[1642435590694,0.13819997,3238.1,3237.3,0.03183171]
[1642435591094,0.13819997,3238.1,3237.4,1.45220926]
[1642435591095,1.23098998,3237.8,3237.4,1.45220926]
[1642435591492,1.23098998,3237.8,3237.5,0.03069486]
[1642435591891,1.23753533,3238.0,3237.5,0.03069486]
[1642435592491,0.13819997,3238.1,3237.5,0.03069486]
[1642435592692,0.13819997,3238.1,3237.5,1.03069486]
[1642435592894,1.41395452,3237.7,3237.5,1.03069486]
[1642435593098,1.41395452,3237.7,3237.6,0.03012644]
[1642435593547,1.41395452,3237.7,3237.5,0.03069486]
[1642435594344,1.41395452,3237.7,3237.3,0.03183171]
[1642435594545,1.41395452,3237.7,3237.4,0.03126329]
[1642435594746,1.41395452,3237.7,3237.3,0.33183171]
[1642435594945,1.41395452,3237.7,3237.4,0.03126329]
[1642435595948,1.41395452,3237.7,3236.8,1.0]
[1642435595949,1.41395452,3237.7,3237.2,0.03240013]
[1642435596348,1.41395452,3237.7,3237.1,0.03296856]
[1642435596750,2.82712631,3237.6,3237.1,0.03296856]
[1642435597202,2.82712631,3237.6,3236.7,0.00402215]
[1642435597203,2.82712631,3237.6,3236.8,0.03467383]
[1642435597804,1.34291477,3237.5,3236.8,0.03467383]
[1642435598005,3.43933124,3237.4,3236.8,0.03467383]
[1642435598409,3.43933124,3237.4,3236.7,0.00402215]
[1642435598410,3.99343124,3237.4,3236.7,0.00402215]
[1642435598605,0.00284212,3237.3,3236.7,0.00402215]
[1642435599004,0.0022737,3237.2,3236.7,0.00402215]
[1642435599406,0.00170527,3237.1,3236.7,0.00402215]
[1642435599607,1.30763689,3237.0,3236.7,0.00402215]
[1642435599908,2.63187374,3237.0,3236.7,0.00402215]
[1642435600740,3.08200395,3236.9,3236.7,0.00402215]
[1642435600943,2.63187374,3237.0,3236.7,0.00402215]
[1642435601538,2.33187374,3237.0,3236.7,0.00402215]
[1642435602744,2.63187374,3237.0,3236.7,0.00402215]
[1642435602946,2.81403921,3236.9,3236.7,0.00402215]
[1642435603746,3.14557374,3237.0,3236.7,0.00402215]
[1642435603947,6.36692762,3237.0,3236.7,0.00402215]
[1642435604148,1.0,3236.9,3236.7,0.00402215]
[1642435604585,3.51857374,3237.0,3236.7,0.00402215]
[1642435604986,19.87259,3236.8,3236.7,2.215e-05]
[1642435605187,20.24559,3236.8,3236.7,2.215e-05]
[1642435605384,21.54559,3236.8,3236.7,2.215e-05]
[1642435605585,5.33149,3236.8,3236.7,2.215e-05]
[1642435605786,10.23149,3236.8,3236.7,2.215e-05]
[1642435605985,6.33149,3236.8,3236.7,2.215e-05]
[1642435606196,4.2589,3236.8,3236.7,2.215e-05]
[1642435606386,3.8859,3236.8,3236.7,2.215e-05]
[1642435607086,4.8859,3236.8,3236.7,2.215e-05]
[1642435607486,3.8859,3236.8,3236.7,2.215e-05]
[1642435607688,1.17172669,3237.0,3236.7,2.215e-05]
[1642435607887,0.00113685,3237.0,3236.7,2.215e-05]
[1642435609148,1.47231012,3237.3,3237.0,0.00886315]
[1642435610749,1.77231012,3237.3,3237.0,0.00886315]
[1642435612183,2.77231012,3237.3,3237.0,0.00886315]
[1642435612385,3.00623089,3237.2,3237.0,0.00886315]
[1642435612884,3.30623089,3237.2,3237.0,0.00886315]
[1642435613083,2.9240444,3237.1,3237.0,0.00886315]
[1642435614490,22.3040444,3237.1,3237.0,6.315e-05]
[1642435614690,23.3040444,3237.1,3237.0,6.315e-05]
[1642435614889,4.2240444,3237.1,3237.0,6.315e-05]
[1642435615190,22.3040444,3237.1,3237.0,6.315e-05]
[1642435615843,0.7727,3236.4,3235.0,3.888]
[1642435616042,0.7727,3236.4,3235.0,4.188]
[1642435616242,0.7727,3236.4,3235.1,0.0096632]
[1642435616645,1.2797177,3235.2,3235.1,0.0096632]
[1642435617446,1.2797177,3235.2,3235.0,1.55550162]
[1642435617846,1.2797177,3235.2,3235.0,0.01023162]
[1642435618044,4.3797177,3235.2,3235.0,0.01023162]
[1642435618445,4.3797177,3235.2,3235.0,1.54526]
[1642435618644,4.3797177,3235.2,3235.0,1.84526]
[1642435619587,4.3797177,3235.2,3235.0,0.3]
[1642435619793,4.3797177,3235.2,3234.9,0.3]
[1642435619991,4.3797177,3235.2,3234.7,0.01193689]
[1642435620190,4.3797177,3235.2,3235.0,0.01023162]
[1642435620391,1.09297205,3235.0,3234.7,0.01193689]
[1642435626339,1.09297205,3235.0,3234.7,0.78466689]
[1642435626746,4.37753824,3235.2,3234.8,0.01136847]
[1642435626991,4.37753824,3235.2,3234.9,0.3]
[1642435626992,3.1,3235.2,3234.9,0.3]
[1642435627194,3.1,3235.2,3234.9,1.84526]
[1642435627397,3.1,3235.2,3235.0,0.01023162]
[1642435627999,3.1,3235.2,3235.1,1.18890533]
[1642435628197,3.1,3235.2,3235.0,1.01023162]
[1642435628398,3.1,3235.2,3235.0,0.01023162]
[1642435628598,3.1,3235.2,3235.0,0.78285162]
[1642435628999,3.1,3235.2,3235.0,1.78285162]
[1642435629402,3.1,3235.2,3235.0,3.01780878]
[1642435630202,2.9002571,3235.2,3235.1,0.3]
[1642435630403,2.84835388,3236.6,3235.3,0.77236]
[1642435630602,2.84835388,3237.6,3235.9,0.01217915]
[1642435631047,2.84835388,3237.6,3236.0,0.00454739]
[1642435631643,1.28673316,3236.6,3236.4,1.34722975]
[1642435631844,1.28673316,3236.6,3236.2,0.77224]
[1642435632049,1.28673316,3236.6,3236.5,0.00170527]
[1642435632243,1.28673316,3236.6,3236.3,0.00284212]
[1642435632442,1.28673316,3236.6,3236.2,0.00341054]
[1642435633044,1.46156571,3236.3,3236.2,1.54438]
[1642435633243,1.46156571,3236.3,3236.0,0.00454739]
[1642435633443,1.46156571,3236.3,3236.2,0.00341054]
[1642435633644,1.46156571,3236.3,3236.0,0.30454739]
[1642435634046,1.46156571,3236.3,3236.1,0.00397896]
[1642435634246,1.28673316,3236.6,3236.0,0.19736896]
[1642435634490,1.28673316,3236.6,3236.0,0.17810896]
[1642435634694,1.24220095,3236.1,3236.0,0.17350896]
[1642435635491,0.00511581,3237.0,3236.0,0.17350896]
[1642435635692,0.00511581,3237.0,3236.2,0.77239]
[1642435635895,0.00454738,3236.9,3236.2,0.76982]
[1642435636094,0.00454738,3236.9,3236.2,0.73673]
[1642435636295,0.00397896,3236.8,3236.2,1.03673]
[1642435636494,3.1,3236.4,3236.2,1.01801]
[1642435636695,3.1,3236.4,3236.2,0.71801]
[1642435636896,0.00113684,3236.3,3236.1,1.54466]
[1642435637896,1.32034481,3236.2,3236.1,1.54466]
[1642435638096,1.32034481,3236.2,3235.8,1.3]
[1642435638544,1.32034481,3236.2,3235.9,0.00113685]
[1642435639948,1.62034481,3236.2,3235.8,0.00170527]
[1642435640145,1.32034481,3236.2,3235.4,1.00397897]
[1642435640544,1.32034481,3236.2,3235.5,0.00341054]
[1642435640743,1.62034481,3236.2,3235.5,0.00341054]
[1642435640945,1.96594481,3236.2,3235.5,0.00341054]
[1642435641143,1.96594481,3236.2,3235.4,0.00397897]
[1642435641343,2.82274481,3236.2,3235.2,1.00511581]
[1642435641543,2.82274481,3236.2,3235.3,0.00454739]
[1642435641993,0.7726948,3236.1,3235.2,0.00511581]
[1642435642193,3.60946308,3236.1,3235.2,0.00511581]
[1642435642392,4.60946308,3236.1,3235.2,0.00511581]
[1642435642896,1.34415752,3235.9,3235.2,0.00511581]
[1642435643094,2.83676828,3235.8,3235.2,0.00511581]
[1642435643298,1.545803,3235.6,3235.2,0.00511581]
[1642435643497,3.06913756,3235.5,3235.2,0.00511581]
[1642435643697,4.01333756,3235.5,3234.5,0.00909478]
[1642435644498,0.7728823,3235.3,3234.5,0.00909478]
[1642435644699,6.56900749,3235.2,3234.5,0.00909478]
[1642435645001,7.56900749,3235.2,3234.4,0.0096632]
[1642435645398,3.94103959,3235.2,3234.4,0.0096632]
[1642435645597,7.37490066,3235.2,3234.4,0.0096632]
[1642435645847,1.1460039,3235.1,3234.4,0.0096632]
[1642435646145,1.0,3234.7,3234.4,0.0096632]
[1642435646344,1.9614,3234.7,3234.0,0.0119369]
[1642435646542,1.9614,3234.7,3234.5,0.00909478]
[1642435646543,2.2614,3234.7,3234.5,0.00909478]
[1642435646745,2.2614,3234.7,3233.6,5.8123]
[1642435646746,2.49716277,3234.6,3233.9,0.01250532]
[1642435647044,1.08500468,3234.6,3233.8,0.01307374]
[1642435648348,1.39273818,3234.1,3233.8,0.01307374]
[1642435648548,1.39273818,3234.1,3233.8,0.78603374]
[1642435648947,1.08500468,3234.6,3233.9,0.01250532]
[1642435649147,4.1,3234.7,3233.9,0.01250532]
[1642435649148,3.1,3234.7,3233.9,0.01250532]
[1642435650601,1.23531396,3234.6,3233.9,0.01250532]
[1642435651801,1.23531396,3234.6,3233.9,1.30897794]
[1642435652001,1.14261222,3234.4,3233.9,0.01250532]
[1642435652202,1.14261222,3234.4,3234.0,0.0119369]
[1642435652401,1.14261222,3234.4,3233.9,0.01250532]
[1642435653749,1.14261222,3234.4,3233.8,0.73546532]
[1642435653946,0.00227369,3234.3,3233.8,0.73546532]
[1642435654147,0.00227369,3234.3,3233.7,3.54578]
[1642435654349,0.00170527,3234.2,3233.7,3.84578]
[1642435654747,0.00113685,3234.1,3233.7,3.84578]
[1642435655049,1.14261222,3234.4,3233.7,1.54578]
[1642435655050,0.00227369,3234.3,3233.7,1.54578]
[1642435655247,0.00227369,3234.3,3233.5,0.3]
[1642435655450,1.14261222,3234.4,3233.4,1.54596]
[1642435655451,1.21960355,3233.6,3233.4,1.54596]
[1642435655647,0.8081,3233.6,3233.5,0.00227369]
[1642435656047,2.0245355,3233.6,3233.5,0.00227369]
[1642435657091,2.0245355,3233.6,3233.4,0.00284212]
[1642435657495,2.0245355,3233.6,3233.4,0.30284212]
[1642435657898,0.8081,3233.6,3233.4,0.30284212]
[1642435658101,0.00227369,3234.3,3233.4,1.07582212]
[1642435658295,0.00227369,3234.3,3233.7,1.20687563]
[1642435658495,0.00170527,3234.2,3233.7,5.62886511]
[1642435658697,0.00170527,3234.2,3233.7,3.57974563]
[1642435658894,0.00113685,3234.1,3233.7,6.62656043]
[1642435659094,0.00113685,3234.1,3233.8,1.53723375]
[1642435659297,0.00511581,3234.8,3234.1,0.77277]
[1642435659797,0.00454739,3234.7,3234.1,0.77277]
[1642435659997,0.00454739,3234.7,3234.1,1.07277]
[1642435660197,0.00397897,3234.6,3234.1,2.07277]
[1642435660600,0.00341054,3234.5,3234.1,2.07277]
[1642435661042,0.00284212,3234.4,3234.1,2.07277]
[1642435661442,0.00284212,3234.4,3234.1,1.07277]
[1642435661641,0.00227369,3234.3,3234.1,0.77277]
[1642435662041,0.00170527,3234.2,3234.1,0.72277]
[1642435662241,0.00170527,3234.2,3233.9,2.54567]
[1642435662442,1.20727907,3234.1,3233.9,2.84567]
[1642435662642,1.20841592,3234.1,3233.9,2.84567]
[1642435663246,1.20841592,3234.1,3233.9,1.84567]
[1642435663446,1.20841592,3234.1,3233.9,1.54567]
[1642435663850,1.20841592,3234.1,3233.6,0.61747037]
[1642435664047,1.20841592,3234.1,3233.4,0.00284212]
[1642435664048,1.18457764,3233.8,3233.4,0.00284212]
[1642435664248,1.18457764,3233.8,3233.7,0.00113685]
[1642435664493,1.18457764,3233.8,3233.4,0.00284212]
[1642435665099,1.18457764,3233.8,3233.5,0.78540902]
[1642435665494,1.18457764,3233.8,3233.6,0.00170527]
[1642435665899,1.18457764,3233.8,3233.4,0.00284212]
[1642435666096,1.18457764,3233.8,3233.5,0.85170102]
[1642435666497,1.18457764,3233.8,3233.5,1.15170102]
[1642435666694,1.18457764,3233.8,3233.6,0.85167469]
[1642435666896,1.18457764,3233.8,3233.6,0.85337996]
[1642435667096,1.18457764,3233.8,3233.7,0.8527852]
[1642435667495,4.28457764,3233.8,3233.7,0.8527852]
[1642435667697,4.58457764,3233.8,3233.0,3.8113]
[1642435667898,4.58457764,3233.8,3232.9,5.15686]
[1642435667900,6.40280764,3233.8,3232.9,3.6107]
[1642435668096,5.62947764,3233.8,3233.1,0.00341054]
[1642435668350,1.51965249,3233.7,3233.1,0.00341054]
[1642435668949,1.51965249,3233.7,3232.8,0.00511581]
[1642435669749,1.51965249,3233.7,3232.2,7.00085]
[1642435669750,1.51965249,3233.7,3232.7,0.00568423]
[1642435669953,3.0019202,3233.6,3232.7,0.00568423]
[1642435670148,3.0019202,3233.6,3232.3,0.61747037]
[1642435670149,3.0019202,3233.6,3232.4,0.0073895]
[1642435670350,3.3019202,3233.6,3232.6,0.77324]
[1642435670550,3.3019202,3233.6,3232.4,0.0073895]
[1642435670750,1.10339726,3232.6,3232.3,0.61747037]
[1642435671152,1.10339726,3232.6,3232.4,0.3]
[1642435671352,2.29791383,3232.6,3232.4,0.3]
[1642435671553,2.29791383,3232.6,3232.5,0.00682108]
[1642435672193,2.29791383,3232.6,3232.1,2.25901967]
[1642435672194,2.59791383,3232.6,3232.1,2.25901967]
[1642435672395,3.63921383,3232.6,3232.1,2.25901967]
[1642435672792,3.63921383,3232.6,3232.2,0.00170527]
[1642435672793,3.33921383,3232.6,3232.2,0.00170527]
[1642435672991,3.33921383,3232.6,3231.7,0.61747037]
[1642435672992,3.63921383,3232.6,3231.7,0.61747037]
[1642435673193,2.60253464,3231.9,3231.7,0.61747037]
[1642435673395,2.60253464,3231.9,3231.5,5.1516]
[1642435673396,3.29743464,3231.9,3231.8,0.00227369]
[1642435673597,0.6949,3231.9,3231.8,0.00227369]
[1642435673800,0.6949,3231.9,3231.6,0.77347]
[1642435673996,0.00170527,3232.5,3231.7,0.00284212]
[1642435674195,0.00170527,3232.5,3231.7,1.54953212]
[1642435674394,0.00113685,3232.4,3231.7,1.54669]
[1642435674595,0.00113685,3232.4,3232.3,2.58701417]
[1642435674795,5.39927772,3234.0,3232.3,2.58701417]
[1642435674796,0.00170527,3232.5,3232.3,2.58701417]
[1642435674996,1.0,3232.8,3232.4,0.3]
[1642435675196,1.0,3232.8,3232.1,0.77332]
[1642435675397,1.0,3232.8,3231.8,1.1411]
[1642435675398,0.00284212,3232.7,3231.8,1.1411]
[1642435675597,0.00284212,3232.7,3231.8,2.4411]
[1642435675846,0.0022737,3232.6,3231.9,0.00170527]
[1642435676044,0.0022737,3232.6,3232.2,0.77323]
[1642435676246,2.83617117,3233.7,3232.2,0.77323]
[1642435676247,0.00170527,3232.5,3232.3,2.84673947]
[1642435676647,1.22342606,3233.2,3232.4,1.0]
[1642435677050,0.00454739,3233.0,3232.4,1.77327]
[1642435677248,1.18461654,3232.7,3232.4,0.77327]
[1642435677450,1.18461654,3232.7,3232.3,1.52025975]
[1642435677648,0.0022737,3232.6,3232.3,1.52025975]
[1642435678048,0.00170527,3232.5,3232.0,1.54651]
[1642435678251,3.10170527,3232.5,3231.7,1.54674]
[1642435678449,0.00113685,3232.4,3231.7,1.54674]
[1642435678650,0.00113685,3232.4,3232.1,1.45034806]
[1642435679498,0.00113685,3232.4,3232.1,2.52358806]
[1642435679697,0.00113685,3232.4,3232.1,3.52358806]
[1642435680098,0.00113685,3232.4,3232.2,1.18330766]
[1642435680497,0.00113685,3232.4,3232.2,2.18330766]
[1642435680899,0.00113685,3232.4,3232.2,2.48330766]
[1642435681100,0.00113685,3232.4,3232.2,2.79100766]
[1642435681902,5.29499994,3233.9,3232.2,5.79791766]
[1642435682110,5.29499994,3233.9,3232.7,0.77309]
[1642435682301,0.00682108,3233.6,3232.7,4.90649]
[1642435682502,0.00682108,3233.6,3232.7,5.20649]
[1642435682701,0.00625266,3233.5,3232.8,1.0]
[1642435682901,0.00625266,3233.5,3233.3,1.31934445]
[1642435683103,0.00568423,3233.4,3232.8,1.0]
[1642435683577,0.00511581,3233.3,3232.8,1.0]
[1642435683976,0.00454739,3233.2,3232.8,1.0]
[1642435684176,1.22324599,3233.2,3232.8,1.25489645]
[1642435684382,0.00397896,3233.1,3232.8,1.25489645]
[1642435684879,0.00341054,3233.0,3232.8,1.25489645]
[1642435685378,1.4710416,3233.9,3232.8,1.25489645]
[1642435685379,0.00284212,3232.9,3232.8,1.25489645]
[1642435686178,0.00284212,3232.9,3231.1,2.35865266]
[1642435686179,0.00284212,3232.9,3232.2,4.70331]
[1642435686381,0.00284212,3232.9,3232.3,9.0788]
[1642435686580,1.48809528,3233.4,3232.3,9.0788]
[1642435686781,1.78809528,3233.4,3232.4,0.00284212]
[1642435686998,0.00227369,3233.3,3232.4,0.00284212]
[1642435687294,0.00170527,3233.2,3232.5,0.77324]
[1642435687492,0.00170527,3233.2,3232.7,1.55720217]
[1642435687695,1.21618359,3233.0,3232.7,1.55720217]
[1642435687893,1.21618359,3233.0,3232.6,0.00170527]
[1642435688298,1.21618359,3233.0,3232.5,0.0022737]
[1642435688598,1.21618359,3233.0,3232.5,0.7755237]
[1642435688802,0.00113684,3233.1,3232.5,0.7755237]
[1642435689000,0.00113684,3233.1,3232.6,0.00170527]
[1642435689701,6.62789014,3233.0,3232.2,1.54642]
[1642435689902,1.47810997,3232.0,3231.6,1.2195]
[1642435690102,1.47810997,3232.0,3231.5,1.41647291]
[1642435690103,0.373,3232.8,3232.3,0.00170527]
[1642435690500,0.673,3232.8,3231.6,0.00568424]
[1642435690769,1.13411023,3232.6,3231.7,1.10501012]
[1642435691173,1.13411023,3232.6,3231.8,0.00454739]
[1642435691174,1.30196215,3232.3,3231.8,0.00454739]
[1642435691776,1.30196215,3232.3,3231.7,0.77853582]
[1642435691977,1.30196215,3232.3,3231.7,0.72796739]
[1642435692279,2.79578495,3232.2,3231.7,0.72796739]
[1642435692474,0.00227369,3232.2,3231.9,1.53670273]
[1642435692673,0.00170527,3232.1,3231.6,0.3]
[1642435693074,0.00113685,3232.0,3231.6,0.3]
[1642435693473,0.00227369,3232.2,3231.6,0.3]
[1642435693873,0.00170527,3232.1,3231.6,0.3]
[1642435694273,0.00113685,3232.0,3231.6,0.3]
[1642435694693,0.00397896,3232.5,3231.9,1.53364825]
[1642435694898,0.00397896,3232.5,3231.9,1.83364825]
[1642435695095,0.00341054,3232.4,3231.9,1.83364825]
[1642435695497,0.00284212,3232.3,3231.9,1.53364825]
[1642435695895,0.00227369,3232.2,3231.9,1.53364825]
[1642435696095,0.00227369,3232.2,3232.0,0.7733]
[1642435696296,0.00170527,3232.1,3232.0,0.7733]
[1642435696497,0.00170527,3232.1,3231.9,3.08014825]
[1642435696697,0.00170527,3232.1,3231.9,3.85341825]
[1642435696898,0.00113685,3232.0,3231.9,3.85341825]
[1642435697698,0.00113685,3232.0,3231.9,3.08014825]
[1642435698646,0.00113685,3232.0,3231.9,3.85341825]
[1642435699645,2.65103685,3232.1,3231.9,3.85341825]
[1642435699845,2.65103685,3232.1,3231.9,3.08014825]
[1642435701050,2.65103685,3232.1,3231.9,3.85341825]
[1642435701849,1.1842625,3232.1,3232.0,7.79629]
[1642435702095,3.7953,3233.3,3232.2,0.77309]
[1642435702295,3.7953,3233.3,3232.6,0.77311]
[1642435702496,0.00682108,3233.2,3232.6,1.91011]
[1642435702895,0.00625265,3233.1,3232.7,1.80754303]
[1642435703299,0.00568423,3233.0,3232.7,1.80754303]
[1642435703501,0.00568423,3233.0,3232.7,2.58065303]
[1642435703701,0.00511581,3232.9,3232.7,2.27631832]
[1642435704104,0.00454738,3232.8,3232.7,2.27631832]
[1642435704502,0.01023162,3232.8,3232.7,2.27631832]
[1642435705945,0.01023162,3232.8,3232.7,3.04934832]
[1642435706947,0.01023162,3232.8,3232.7,2.27631832]
[1642435708552,3.11023162,3232.8,3232.7,2.27631832]
[1642435711505,3.11023162,3232.8,3232.6,2.0]
[1642435711906,0.00397896,3232.7,3232.6,2.0]
[1642435712703,0.00397896,3232.7,3232.6,3.36489411]
[1642435715158,0.00397896,3232.7,3232.6,3.66489411]
[1642435717810,0.00397896,3232.7,3232.6,3.36489411]
[1642435726803,0.00397896,3232.7,3232.6,2.0]
[1642435727006,0.01903527,3232.6,3232.1,0.046409]
[1642435727205,0.00397896,3232.7,3232.1,0.046409]
[1642435727403,0.00284211,3232.5,3232.1,0.046409]
[1642435727602,0.00341054,3232.6,3232.1,0.046409]
[1642435727803,0.00227369,3232.4,3232.1,0.046409]
[1642435728004,2.64855479,3232.5,3232.1,0.046409]
[1642435728257,0.00170527,3232.3,3232.2,1.30518436]
[1642435728456,0.00227369,3232.4,3232.2,1.30518436]
[1642435728753,2.64571268,3232.5,3232.2,1.30518436]
[1642435728754,0.00170527,3232.3,3232.2,1.30518436]
[1642435728958,0.00227369,3232.3,3232.2,1.30518436]
[1642435729157,0.00170527,3232.3,3232.2,1.30518436]
[1642435731056,0.00170527,3232.3,3232.2,2.03346713]
[1642435731461,0.00170527,3232.3,3232.2,3.03346713]
[1642435731860,0.00170527,3232.3,3232.2,3.33346713]
[1642435732105,0.00170527,3232.3,3232.2,5.33346713]
[1642435732503,0.00170527,3232.3,3232.2,5.70646713]
[1642435733503,0.00170527,3232.3,3232.2,6.00646713]
[1642435733705,0.00170527,3232.3,3232.2,4.40646713]
[1642435734711,3.1,3232.8,3232.3,5.25]
[1642435734908,3.1,3232.8,3232.4,2.69175]
[1642435735108,3.1,3232.8,3232.4,3.99175]
[1642435735109,0.00227369,3232.7,3232.4,3.99175]
[1642435735509,0.00170527,3232.6,3232.4,3.99175]
[1642435735960,3.1,3232.8,3232.5,6.8735513]
[1642435735961,1.03361365,3232.8,3232.5,6.8735513]
[1642435736165,1.03361365,3232.8,3232.6,0.38529453]
[1642435736166,0.2208991,3232.8,3232.6,0.38529453]
[1642435736360,1.56347772,3233.8,3232.6,0.38529453]
[1642435736361,1.56347772,3233.8,3232.7,5.85]
[1642435736559,1.56347772,3233.8,3232.8,0.373]
[1642435736768,0.00568423,3233.7,3233.0,1.54562]
[1642435736964,0.00568423,3233.7,3233.2,0.77284]
[1642435737166,3.9691,3234.1,3233.4,1.25364498]
[1642435737167,0.00511581,3233.6,3233.4,1.25364498]
[1642435737364,0.00511581,3233.6,3233.4,1.24786946]
[1642435737663,3.9691,3234.1,3233.4,1.24786946]
[1642435737664,0.00454739,3233.5,3233.4,1.24786946]
[1642435738064,0.00454739,3233.5,3233.4,2.32070946]
[1642435738468,0.00454739,3233.5,3233.4,3.32070946]
[1642435739496,3.10454739,3233.5,3233.4,3.32070946]
[1642435740508,0.00454739,3233.5,3233.4,3.32070946]
[1642435740705,0.00454739,3233.5,3233.4,8.75650946]
[1642435743007,6.74667274,3234.7,3233.4,8.75650946]
[1642435743008,3.9739,3234.7,3233.5,5.6]
[1642435743246,3.9739,3234.7,3233.4,8.43022076]
[1642435743247,3.9739,3234.7,3233.9,0.77266]
[1642435743450,0.00625266,3234.6,3233.9,0.77266]
[1642435743650,1.27559412,3234.6,3234.2,1.16910239]
[1642435743850,0.00568423,3234.5,3234.2,1.16910239]
[1642435744153,0.00511581,3234.4,3234.2,1.16910239]
[1642435744555,0.00454738,3234.3,3234.2,1.16910239]
[1642435744749,0.00454738,3234.3,3234.2,1.46910239]
[1642435744948,0.00454738,3234.3,3234.2,1.45156002]
[1642435745350,0.0014506,3234.3,3234.2,1.41643335]
[1642435745549,2.64569739,3234.3,3234.2,1.41643335]
[1642435745950,2.64569739,3234.3,3234.2,4.91643335]
[1642435746151,2.64569739,3234.3,3234.2,5.91643335]
[1642435746352,2.64569739,3234.3,3234.2,2.41643335]
[1642435746552,2.64569739,3234.3,3234.2,1.16910239]
[1642435746753,2.64569739,3234.3,3233.8,1.2433]
[1642435747014,2.64569739,3234.3,3233.8,0.7728]
[1642435747015,0.0014506,3234.3,3233.8,0.7728]
[1642435747316,0.00088218,3234.2,3233.9,0.00082309]
[1642435747705,5.3867378,3234.6,3233.6,1.54546]
[1642435747706,0.00258745,3234.5,3233.7,0.00195994]
[1642435748105,0.00201903,3234.4,3233.7,0.00195994]
[1642435748307,1.34091557,3234.1,3233.7,0.00195994]
[1642435748508,2.95783782,3234.0,3233.7,0.00195994]
[1642435748708,2.95783782,3234.0,3233.2,3.85248178]